[Event "*** Titled Tuesday Blitz"]
[Site "Chess.com"]
[Date "2020.03.03"]
[Round "1"]
[White "Manukyan_Artak"]
[Black "GM_dmitrij"]
[Result "0-1"]
[WhiteElo "2434"]
[BlackElo "2824"]
[TimeControl "180+1"]
[EndTime "13:05:12 PST"]
[Termination "GM_dmitrij won by resignation"]

1. e4 {[%clk 0:03:00.9]} 1... e5 {[%clk 0:02:59.6]} 2. Nf3 {[%clk 0:03:00.3]}
2... Nc6 {[%clk 0:02:58]} 3. d4 {[%clk 0:02:59.7]} 3... exd4 {[%clk 0:02:58.9]}
4. Nxd4 {[%clk 0:02:59.1]} 4... Nf6 {[%clk 0:02:58.9]} 5. Nxc6 {[%clk 0:02:59]}
5... bxc6 {[%clk 0:02:59.8]} 6. e5 {[%clk 0:02:59.5]} 6... Qe7 {[%clk
0:03:00.4]} 7. Qe2 {[%clk 0:02:59.8]} 7... Nd5 {[%clk 0:03:01.3]} 8. c4 {[%clk
0:03:00.2]} 8... Nb6 {[%clk 0:03:00.8]} 9. Nc3 {[%clk 0:02:58.2]} 9... Ba6
{[%clk 0:03:00.9]} 10. b3 {[%clk 0:02:55.9]} 10... O-O-O {[%clk 0:02:59.2]} 11.
Bb2 {[%clk 0:02:49.1]} 11... Re8 {[%clk 0:02:59.1]} 12. f4 {[%clk 0:02:48]}
12... f6 {[%clk 0:02:58.6]} 13. O-O-O {[%clk 0:02:40.5]} 13... fxe5 {[%clk
0:02:57]} 14. fxe5 {[%clk 0:02:30]} 14... Qxe5 {[%clk 0:02:57.9]} 15. Qd2 {[%clk
0:02:30.2]} 15... Qe3 {[%clk 0:02:45.4]} 16. Bd3 {[%clk 0:02:18]} 16... Bb4
{[%clk 0:02:28.2]} 17. Qxe3 {[%clk 0:02:05.6]} 17... Rxe3 {[%clk 0:02:28]} 18.
Kd2 {[%clk 0:02:06.1]} 18... Rhe8 {[%clk 0:02:13.8]} 19. Rde1 {[%clk 0:02:05.2]}
19... Rxe1 {[%clk 0:01:57.5]} 20. Rxe1 {[%clk 0:02:06.1]} 20... Rxe1 {[%clk
0:01:57.6]} 21. Kxe1 {[%clk 0:02:06.8]} 21... d5 {[%clk 0:01:58.1]} 22. Bxh7
{[%clk 0:01:50.9]} 22... d4 {[%clk 0:01:57]} 23. Kd2 {[%clk 0:01:45.1]} 23... c5
{[%clk 0:01:53.7]} 24. Kd3 {[%clk 0:01:43.1]} 24... Bxc3 {[%clk 0:01:52.9]} 25.
Bxc3 {[%clk 0:01:44]} 25... dxc3 {[%clk 0:01:53.8]} 26. Kxc3 {[%clk 0:01:44.9]}
26... Bb7 {[%clk 0:01:53.3]} 27. g4 {[%clk 0:01:44.6]} 27... Kd8 {[%clk
0:01:53.8]} 28. h4 {[%clk 0:01:43.9]} 28... Ke7 {[%clk 0:01:53.7]} 29. g5 {[%clk
0:01:43.5]} 29... Bf3 {[%clk 0:01:48.6]} 30. b4 {[%clk 0:01:43.1]} 30... Kd6
{[%clk 0:01:28.2]} 31. Bc2 {[%clk 0:01:38]} 31... Bh5 {[%clk 0:01:25.1]} 32. a4
{[%clk 0:01:36.5]} 32... Nd7 {[%clk 0:01:24.2]} 33. a5 {[%clk 0:01:34.3]} 33...
Ne5 {[%clk 0:01:21.3]} 34. b5 {[%clk 0:01:31.4]} 34... Bf7 {[%clk 0:01:19.6]}
35. Bd3 {[%clk 0:01:28.2]} 35... Nxd3 {[%clk 0:01:16.1]} 36. Kxd3 {[%clk
0:01:27.7]} 36... Ke5 {[%clk 0:01:16]} 0-1

[Event "*** Titled Tuesday Blitz"]
[Site "Chess.com"]
[Date "2020.03.03"]
[Round "1"]
[White "GMKrikor"]
[Black "superstructure"]
[Result "1-0"]
[WhiteElo "2823"]
[BlackElo "2434"]
[TimeControl "180+1"]
[EndTime "13:05:16 PST"]
[Termination "GMKrikor won by resignation"]

1. Nf3 {[%clk 0:03:00.9]} 1... Nf6 {[%clk 0:02:59.4]} 2. c4 {[%clk 0:02:59]}
2... b6 {[%clk 0:02:58.5]} 3. g3 {[%clk 0:02:58.8]} 3... c5 {[%clk 0:02:57.8]}
4. Bg2 {[%clk 0:02:58.8]} 4... Bb7 {[%clk 0:02:58.4]} 5. O-O {[%clk 0:02:59]}
5... e6 {[%clk 0:02:57.2]} 6. Nc3 {[%clk 0:02:57.3]} 6... a6 {[%clk 0:02:57.3]}
7. Re1 {[%clk 0:02:57.5]} 7... Be7 {[%clk 0:02:56.8]} 8. e4 {[%clk 0:02:57.5]}
8... d6 {[%clk 0:02:57.2]} 9. d4 {[%clk 0:02:58]} 9... cxd4 {[%clk 0:02:57.3]}
10. Nxd4 {[%clk 0:02:58.9]} 10... Qc7 {[%clk 0:02:57.5]} 11. Be3 {[%clk
0:02:58.9]} 11... O-O {[%clk 0:02:57.1]} 12. Rc1 {[%clk 0:02:56.7]} 12... Nbd7
{[%clk 0:02:55]} 13. f4 {[%clk 0:02:56.2]} 13... h5 {[%clk 0:02:49.1]} 14. h3
{[%clk 0:02:55.5]} 14... Rfe8 {[%clk 0:02:49.1]} 15. f5 {[%clk 0:02:46.9]} 15...
Bf8 {[%clk 0:02:48]} 16. fxe6 {[%clk 0:02:41.2]} 16... fxe6 {[%clk 0:02:47.1]}
17. Qe2 {[%clk 0:02:34.2]} 17... Ne5 {[%clk 0:02:45.9]} 18. b3 {[%clk
0:02:34.8]} 18... Qf7 {[%clk 0:02:33.6]} 19. Rf1 {[%clk 0:02:26.2]} 19... Qg6
{[%clk 0:02:32.5]} 20. Bf4 {[%clk 0:02:26.8]} 20... Nfd7 {[%clk 0:02:18.3]} 21.
Rcd1 {[%clk 0:02:22.1]} 21... Be7 {[%clk 0:02:04.4]} 22. Kh2 {[%clk 0:02:21.5]}
22... h4 {[%clk 0:01:54.7]} 23. Nf5 {[%clk 0:02:02.1]} 23... hxg3+ {[%clk
0:01:15.9]} 24. Bxg3 {[%clk 0:02:02.1]} 24... exf5 {[%clk 0:00:41.3]} 25. exf5
{[%clk 0:02:00.9]} 25... Bxg2 {[%clk 0:00:39.1]} 26. fxg6 {[%clk 0:01:58.1]}
26... Bxf1 {[%clk 0:00:39.5]} 27. Rxf1 {[%clk 0:01:55.7]} 27... Bf6 {[%clk
0:00:38.7]} 28. Nd5 {[%clk 0:01:54.8]} 28... Nxg6 {[%clk 0:00:35.2]} 29. Qg4
{[%clk 0:01:50.4]} 29... Nde5 {[%clk 0:00:30.9]} 30. Nxf6+ {[%clk 0:01:45.6]}
30... gxf6 {[%clk 0:00:30]} 31. Bxe5 {[%clk 0:01:46]} 1-0

[Event "*** Titled Tuesday Blitz"]
[Site "Chess.com"]
[Date "2020.03.03"]
[Round "1"]
[White "MendozaDavid2000"]
[Black "HomayoonTofighi"]
[Result "0-1"]
[WhiteElo "2197"]
[BlackElo "2601"]
[TimeControl "180+1"]
[EndTime "13:05:17 PST"]
[Termination "HomayoonTofighi won on time"]

1. d4 {[%clk 0:03:00.9]} 1... e6 {[%clk 0:02:57.7]} 2. c4 {[%clk 0:03:00.4]}
2... Nf6 {[%clk 0:02:56.7]} 3. Nc3 {[%clk 0:03:00.3]} 3... Bb4 {[%clk
0:02:55.5]} 4. Qc2 {[%clk 0:03:00.2]} 4... d5 {[%clk 0:02:55.5]} 5. cxd5 {[%clk
0:02:58.7]} 5... exd5 {[%clk 0:02:54.3]} 6. Bg5 {[%clk 0:02:56.7]} 6... O-O
{[%clk 0:02:54.3]} 7. e3 {[%clk 0:02:52.6]} 7... c5 {[%clk 0:02:54.2]} 8. dxc5
{[%clk 0:02:51.4]} 8... h6 {[%clk 0:02:49.3]} 9. Bh4 {[%clk 0:02:42]} 9... Nbd7
{[%clk 0:02:47.1]} 10. a3 {[%clk 0:02:32.6]} 10... Bxc3+ {[%clk 0:02:40.9]} 11.
Qxc3 {[%clk 0:02:30.5]} 11... g5 {[%clk 0:02:37.8]} 12. Bg3 {[%clk 0:02:24.3]}
12... Ne4 {[%clk 0:02:38.2]} 13. Qc2 {[%clk 0:02:11.5]} 13... Ndxc5 {[%clk
0:02:35.6]} 14. b4 {[%clk 0:01:51.3]} 14... Bf5 {[%clk 0:02:25.3]} 15. Qd1
{[%clk 0:01:40]} 15... Ne6 {[%clk 0:02:20.3]} 16. Bd3 {[%clk 0:01:36.5]} 16...
d4 {[%clk 0:02:15.1]} 17. Qf3 {[%clk 0:01:15.7]} 17... dxe3 {[%clk 0:02:01.7]}
18. Bxe4 {[%clk 0:00:58.7]} 18... Nd4 {[%clk 0:02:00.1]} 19. Qxf5 {[%clk
0:00:30]} 19... Nxf5 {[%clk 0:01:59.7]} 20. Bxf5 {[%clk 0:00:30.9]} 20... Qf6
{[%clk 0:02:00.4]} 21. Rd1 {[%clk 0:00:12.2]} 21... exf2+ {[%clk 0:01:59.4]} 22.
Bxf2 {[%clk 0:00:08.9]} 22... Qxf5 {[%clk 0:02:00.3]} 23. Nf3 {[%clk 0:00:08.1]}
23... Rfe8+ {[%clk 0:02:01.2]} 24. Kf1 {[%clk 0:00:05.4]} 24... Rad8 {[%clk
0:02:02.1]} 25. Rxd8 {[%clk 0:00:02.1]} 25... Rxd8 {[%clk 0:02:03]} 0-1

[Event "*** Titled Tuesday Blitz"]
[Site "Chess.com"]
[Date "2020.03.03"]
[Round "1"]
[White "MasterKroket"]
[Black "mrkvoz"]
[Result "0-1"]
[WhiteElo "2432"]
[BlackElo "2812"]
[TimeControl "180+1"]
[EndTime "13:05:20 PST"]
[Termination "mrkvoz won on time"]

1. d4 {[%clk 0:02:57.7]} 1... d6 {[%clk 0:02:59.8]} 2. Nf3 {[%clk 0:02:56.6]}
2... g6 {[%clk 0:02:59.6]} 3. c4 {[%clk 0:02:55.6]} 3... Bg7 {[%clk 0:02:59.9]}
4. Nc3 {[%clk 0:02:56]} 4... Nf6 {[%clk 0:02:59.4]} 5. e4 {[%clk 0:02:55.6]}
5... O-O {[%clk 0:02:59.6]} 6. Be2 {[%clk 0:02:55.5]} 6... Na6 {[%clk
0:02:59.1]} 7. Bg5 {[%clk 0:02:52.7]} 7... h6 {[%clk 0:02:58.6]} 8. Bh4 {[%clk
0:02:52.2]} 8... g5 {[%clk 0:02:58.8]} 9. Bg3 {[%clk 0:02:52.3]} 9... Nh5 {[%clk
0:02:59.4]} 10. O-O {[%clk 0:02:46.9]} 10... c5 {[%clk 0:02:49.7]} 11. d5 {[%clk
0:02:42.6]} 11... Nxg3 {[%clk 0:02:49.9]} 12. hxg3 {[%clk 0:02:41.5]} 12... e6
{[%clk 0:02:50.2]} 13. dxe6 {[%clk 0:02:32.3]} 13... Bxe6 {[%clk 0:02:47.8]} 14.
Nh2 {[%clk 0:02:31.4]} 14... Nb4 {[%clk 0:02:45.6]} 15. Ng4 {[%clk 0:02:20.2]}
15... Nc6 {[%clk 0:02:43.8]} 16. Ne3 {[%clk 0:02:15.6]} 16... a6 {[%clk
0:02:36.2]} 17. Bg4 {[%clk 0:02:04.7]} 17... Rb8 {[%clk 0:02:35.3]} 18. Bf5
{[%clk 0:01:53.8]} 18... Nd4 {[%clk 0:02:35.2]} 19. Ncd5 {[%clk 0:01:46.6]}
19... b5 {[%clk 0:02:31.7]} 20. cxb5 {[%clk 0:01:44.9]} 20... Rxb5 {[%clk
0:02:23.5]} 21. Qg4 {[%clk 0:01:37]} 21... Rxb2 {[%clk 0:02:19.9]} 22. Rab1
{[%clk 0:01:29.4]} 22... Rd2 {[%clk 0:02:08.4]} 23. Rb7 {[%clk 0:01:27.9]} 23...
Nxf5 {[%clk 0:02:07.3]} 24. Nxf5 {[%clk 0:01:20.2]} 24... Kh7 {[%clk 0:01:50.7]}
0-1

[Event "*** Titled Tuesday Blitz"]
[Site "Chess.com"]
[Date "2020.03.03"]
[Round "1"]
[White "Imre91"]
[Black "gui_borba"]
[Result "1-0"]
[WhiteElo "2731"]
[BlackElo "2378"]
[TimeControl "180+1"]
[EndTime "13:05:23 PST"]
[Termination "Imre91 won by resignation"]

1. d4 {[%clk 0:03:00.9]} 1... Nf6 {[%clk 0:02:56.3]} 2. Nf3 {[%clk 0:03:01.4]}
2... g6 {[%clk 0:02:54.9]} 3. Bg5 {[%clk 0:03:00.5]} 3... Bg7 {[%clk 0:02:54.2]}
4. Nc3 {[%clk 0:02:56.4]} 4... d5 {[%clk 0:02:52.3]} 5. e3 {[%clk 0:02:56.5]}
5... O-O {[%clk 0:02:49.4]} 6. Be2 {[%clk 0:02:56.1]} 6... c6 {[%clk 0:02:45.2]}
7. O-O {[%clk 0:02:55.9]} 7... Bf5 {[%clk 0:02:43.5]} 8. h3 {[%clk 0:02:54.6]}
8... Ne4 {[%clk 0:02:41.3]} 9. Nxe4 {[%clk 0:02:53.3]} 9... Bxe4 {[%clk
0:02:42.2]} 10. Nd2 {[%clk 0:02:52.6]} 10... Bf5 {[%clk 0:02:41.9]} 11. c4
{[%clk 0:02:53]} 11... Qd7 {[%clk 0:02:28.8]} 12. Nb3 {[%clk 0:02:46.6]} 12...
b6 {[%clk 0:02:24.7]} 13. Rc1 {[%clk 0:02:46.3]} 13... Be6 {[%clk 0:02:13.1]}
14. Nd2 {[%clk 0:02:45.5]} 14... f6 {[%clk 0:02:05.5]} 15. Bh4 {[%clk
0:02:44.7]} 15... Bf7 {[%clk 0:02:05]} 16. b4 {[%clk 0:02:41.4]} 16... e5 {[%clk
0:02:02]} 17. dxe5 {[%clk 0:02:28.3]} 17... fxe5 {[%clk 0:02:01.2]} 18. a4
{[%clk 0:02:21.8]} 18... Be6 {[%clk 0:01:28.4]} 19. b5 {[%clk 0:02:17.4]} 19...
d4 {[%clk 0:01:19.5]} 20. exd4 {[%clk 0:02:15.9]} 20... exd4 {[%clk 0:01:20.4]}
21. Bf3 {[%clk 0:02:15.5]} 21... a6 {[%clk 0:01:01.9]} 22. Re1 {[%clk
0:02:10.9]} 22... axb5 {[%clk 0:00:59.7]} 23. axb5 {[%clk 0:02:09.8]} 23... Kh8
{[%clk 0:00:48.5]} 24. c5 {[%clk 0:01:57.3]} 24... Bd5 {[%clk 0:00:26.1]} 25.
bxc6 {[%clk 0:01:55.3]} 25... Nxc6 {[%clk 0:00:24.2]} 26. Bxd5 {[%clk
0:01:47.6]} 26... Qxd5 {[%clk 0:00:25.1]} 27. cxb6 {[%clk 0:01:48.2]} 27... Rfb8
{[%clk 0:00:24.6]} 28. Qf3 {[%clk 0:01:40.2]} 28... Qxf3 {[%clk 0:00:20.8]} 29.
Nxf3 {[%clk 0:01:41.1]} 29... Rxb6 {[%clk 0:00:21]} 30. Re6 {[%clk 0:01:39.3]}
30... Rab8 {[%clk 0:00:19.3]} 31. Rcxc6 {[%clk 0:01:37.3]} 1-0

[Event "*** Titled Tuesday Blitz"]
[Site "Chess.com"]
[Date "2020.03.03"]
[Round "1"]
[White "dopolian"]
[Black "NTBT_DHS"]
[Result "0-1"]
[WhiteElo "2370"]
[BlackElo "2712"]
[TimeControl "180+1"]
[EndTime "13:05:55 PST"]
[Termination "NTBT_DHS won by resignation"]

1. e4 {[%clk 0:03:00.9]} 1... c5 {[%clk 0:02:59.4]} 2. Nf3 {[%clk 0:03:01.1]}
2... d6 {[%clk 0:02:59.9]} 3. d4 {[%clk 0:03:01.2]} 3... cxd4 {[%clk 0:03:00.8]}
4. Nxd4 {[%clk 0:03:01.7]} 4... Nf6 {[%clk 0:03:01.4]} 5. Nc3 {[%clk 0:03:02.3]}
5... g6 {[%clk 0:03:01.3]} 6. Be3 {[%clk 0:03:02]} 6... Bg7 {[%clk 0:03:01.7]}
7. f3 {[%clk 0:03:02.4]} 7... O-O {[%clk 0:03:02.1]} 8. Qd2 {[%clk 0:03:03]}
8... Nc6 {[%clk 0:03:02.6]} 9. g4 {[%clk 0:03:02.2]} 9... d5 {[%clk 0:02:27.7]}
10. g5 {[%clk 0:03:00.9]} 10... Nh5 {[%clk 0:02:17.4]} 11. exd5 {[%clk
0:02:40.9]} 11... Nxd4 {[%clk 0:02:07.9]} 12. Bxd4 {[%clk 0:02:40.4]} 12... e5
{[%clk 0:02:06.8]} 13. Be3 {[%clk 0:02:18.1]} 13... Bf5 {[%clk 0:02:04.3]} 14.
Bd3 {[%clk 0:02:11.4]} 14... Bxd3 {[%clk 0:02:02.9]} 15. Qxd3 {[%clk 0:02:11.5]}
15... Nf4 {[%clk 0:02:03.3]} 16. Bxf4 {[%clk 0:02:10.6]} 16... exf4 {[%clk
0:02:04.2]} 17. O-O-O {[%clk 0:01:58.6]} 17... Qxg5 {[%clk 0:02:03.9]} 18. Ne4
{[%clk 0:01:47]} 18... Qe5 {[%clk 0:02:00.6]} 19. c3 {[%clk 0:01:47]} 19... Rfd8
{[%clk 0:01:58.7]} 20. Rhe1 {[%clk 0:01:44.8]} 20... Rac8 {[%clk 0:01:54.4]} 21.
Kb1 {[%clk 0:01:35.6]} 21... Qh5 {[%clk 0:01:49.8]} 22. d6 {[%clk 0:01:32.2]}
22... Qf5 {[%clk 0:01:47.2]} 23. Qd5 {[%clk 0:01:08.4]} 23... Rc6 {[%clk
0:01:30.1]} 24. Rd3 {[%clk 0:00:49.8]} 24... Be5 {[%clk 0:01:22.8]} 25. Red1
{[%clk 0:00:47.6]} 25... h5 {[%clk 0:01:12.5]} 26. d7 {[%clk 0:00:44.1]} 26...
Rc7 {[%clk 0:01:11]} 27. Nc5 {[%clk 0:00:34.5]} 27... b6 {[%clk 0:01:05.4]} 28.
Nb7 {[%clk 0:00:25.6]} 28... Rdxd7 {[%clk 0:01:02.4]} 0-1

[Event "*** Titled Tuesday Blitz"]
[Site "Chess.com"]
[Date "2020.03.03"]
[Round "1"]
[White "CastleOasisChess"]
[Black "Ar4uha"]
[Result "0-1"]
[WhiteElo "2126"]
[BlackElo "2579"]
[TimeControl "180+1"]
[EndTime "13:05:58 PST"]
[Termination "Ar4uha won by resignation"]

1. d4 {[%clk 0:03:00.9]} 1... Nf6 {[%clk 0:03:00]} 2. e3 {[%clk 0:03:00.7]} 2...
e6 {[%clk 0:03:00.9]} 3. Bd3 {[%clk 0:02:58.8]} 3... b6 {[%clk 0:03:01.2]} 4. f4
{[%clk 0:02:57.9]} 4... Bb7 {[%clk 0:03:01.2]} 5. Nf3 {[%clk 0:02:58.5]} 5...
Be7 {[%clk 0:03:00.4]} 6. Nbd2 {[%clk 0:02:59]} 6... c5 {[%clk 0:03:00.8]} 7. c3
{[%clk 0:02:59.3]} 7... O-O {[%clk 0:03:00.4]} 8. O-O {[%clk 0:02:59.1]} 8...
Nc6 {[%clk 0:03:00.6]} 9. Qe2 {[%clk 0:02:58]} 9... cxd4 {[%clk 0:02:59.2]} 10.
exd4 {[%clk 0:02:57.4]} 10... Nd5 {[%clk 0:02:58.4]} 11. Ne5 {[%clk 0:02:55.2]}
11... f5 {[%clk 0:02:54.4]} 12. Ndf3 {[%clk 0:02:50.3]} 12... Qe8 {[%clk
0:02:48.4]} 13. Nxc6 {[%clk 0:02:49.5]} 13... Bxc6 {[%clk 0:02:47.9]} 14. Ne5
{[%clk 0:02:50]} 14... Bb7 {[%clk 0:02:47.5]} 15. Bd2 {[%clk 0:02:46.1]} 15...
Rf6 {[%clk 0:02:25.2]} 16. Rf3 {[%clk 0:02:44.6]} 16... Rh6 {[%clk 0:02:15.2]}
17. Rh3 {[%clk 0:02:42.2]} 17... Rxh3 {[%clk 0:02:14.5]} 18. gxh3 {[%clk
0:02:43.1]} 18... d6 {[%clk 0:02:14.3]} 19. Nf3 {[%clk 0:02:38.3]} 19... Bf6
{[%clk 0:02:14.2]} 20. Kf2 {[%clk 0:02:35.9]} 20... Qh5 {[%clk 0:02:12.5]} 21.
Qf1 {[%clk 0:02:27.8]} 21... Nxf4 {[%clk 0:02:02.3]} 22. Bxf4 {[%clk 0:02:23.8]}
22... Qxf3+ {[%clk 0:02:01.4]} 23. Ke1 {[%clk 0:02:24.2]} 23... Qh5 {[%clk
0:01:32.1]} 24. Kd2 {[%clk 0:02:17.3]} 24... e5 {[%clk 0:01:30.3]} 25. dxe5
{[%clk 0:02:15.5]} 25... dxe5 {[%clk 0:01:31.2]} 26. Bg3 {[%clk 0:02:09.5]}
26... Rd8 {[%clk 0:01:31]} 27. Kc2 {[%clk 0:02:06.9]} 27... Rxd3 {[%clk
0:01:27.3]} 28. Qxd3 {[%clk 0:02:04.9]} 28... Be4 {[%clk 0:01:27]} 29. Qxe4
{[%clk 0:02:05.5]} 29... fxe4 {[%clk 0:01:27.9]} 30. Re1 {[%clk 0:02:04.4]}
30... Qf3 {[%clk 0:01:26.2]} 31. Kb3 {[%clk 0:02:02.2]} 31... e3 {[%clk
0:01:12.3]} 32. a4 {[%clk 0:02:00.1]} 32... e2 {[%clk 0:01:11.6]} 33. Kc2 {[%clk
0:01:55.2]} 33... Qe3 {[%clk 0:01:11.5]} 34. Kb3 {[%clk 0:01:50.1]} 34... Qd3
{[%clk 0:01:11.2]} 35. h4 {[%clk 0:01:44.3]} 35... e4 {[%clk 0:01:10]} 36. h5
{[%clk 0:01:42.4]} 36... h6 {[%clk 0:01:09.9]} 37. Bf2 {[%clk 0:01:38.7]} 37...
Bg5 {[%clk 0:01:07.6]} 38. Bg3 {[%clk 0:01:35.9]} 38... Bd2 {[%clk 0:01:07.3]}
39. Bf2 {[%clk 0:01:33.1]} 39... e3 {[%clk 0:01:06.6]} 40. Bg3 {[%clk 0:01:32]}
40... Bxe1 {[%clk 0:01:06.9]} 41. Bxe1 {[%clk 0:01:32]} 41... Qd1+ {[%clk
0:01:07.8]} 42. Kc4 {[%clk 0:01:29.3]} 42... Qxe1 {[%clk 0:01:08.7]} 43. Kb5
{[%clk 0:01:28.8]} 43... Qd2 {[%clk 0:01:08.3]} 44. h4 {[%clk 0:01:28]} 44...
Qxb2+ {[%clk 0:01:04.5]} 45. Ka6 {[%clk 0:01:27.6]} 45... e1=Q {[%clk
0:01:02.8]} 46. a5 {[%clk 0:01:24.2]} 46... bxa5 {[%clk 0:00:58.1]} 47. Kxa7
{[%clk 0:01:18.7]} 47... Qexc3 {[%clk 0:00:55]} 48. Ka8 {[%clk 0:01:17.8]} 48...
e2 {[%clk 0:00:55.1]} 49. Ka7 {[%clk 0:01:17]} 49... e1=Q {[%clk 0:00:55.4]} 50.
Ka6 {[%clk 0:01:16.6]} 50... Kf7 {[%clk 0:00:55.8]} 0-1

[Event "*** Titled Tuesday Blitz"]
[Site "Chess.com"]
[Date "2020.03.03"]
[Round "1"]
[White "ShahMatKanal"]
[Black "AntonSmirnov"]
[Result "0-1"]
[WhiteElo "2492"]
[BlackElo "2923"]
[TimeControl "180+1"]
[EndTime "13:06:00 PST"]
[Termination "AntonSmirnov won by checkmate"]

1. d4 {[%clk 0:03:00.9]} 1... d5 {[%clk 0:02:58]} 2. c4 {[%clk 0:03:00]} 2... c6
{[%clk 0:02:58]} 3. Nf3 {[%clk 0:02:59]} 3... Nf6 {[%clk 0:02:58]} 4. e3 {[%clk
0:02:53.8]} 4... Bg4 {[%clk 0:02:57.6]} 5. Nc3 {[%clk 0:02:49.9]} 5... e6 {[%clk
0:02:56.5]} 6. h3 {[%clk 0:02:47.7]} 6... Bh5 {[%clk 0:02:55.9]} 7. Be2 {[%clk
0:02:37.3]} 7... Nbd7 {[%clk 0:02:54.4]} 8. O-O {[%clk 0:02:35.5]} 8... Bd6
{[%clk 0:02:53.9]} 9. Bd2 {[%clk 0:02:26.5]} 9... O-O {[%clk 0:02:52.8]} 10. Rc1
{[%clk 0:02:26.3]} 10... Ne4 {[%clk 0:02:45.8]} 11. Nxe4 {[%clk 0:02:12.2]}
11... dxe4 {[%clk 0:02:45.1]} 12. Ne1 {[%clk 0:02:11.8]} 12... Bxe2 {[%clk
0:02:43.9]} 13. Qxe2 {[%clk 0:02:12.7]} 13... f5 {[%clk 0:02:42.5]} 14. f3
{[%clk 0:02:01.2]} 14... Nf6 {[%clk 0:02:36.2]} 15. f4 {[%clk 0:01:56.8]} 15...
h6 {[%clk 0:02:26.2]} 16. Nc2 {[%clk 0:01:53]} 16... g5 {[%clk 0:02:24.6]} 17.
Bb4 {[%clk 0:01:47.4]} 17... g4 {[%clk 0:02:21]} 18. Bxd6 {[%clk 0:01:46.5]}
18... Qxd6 {[%clk 0:02:20.5]} 19. h4 {[%clk 0:01:42.2]} 19... Nh5 {[%clk
0:02:17.1]} 20. Kh2 {[%clk 0:01:33.5]} 20... g3+ {[%clk 0:01:58.1]} 21. Kh3
{[%clk 0:01:25.9]} 21... Nf6 {[%clk 0:01:57.4]} 22. d5 {[%clk 0:01:13]} 22... c5
{[%clk 0:01:53.6]} 23. b4 {[%clk 0:01:11.6]} 23... b6 {[%clk 0:01:50.2]} 24.
bxc5 {[%clk 0:01:11.1]} 24... bxc5 {[%clk 0:01:49.8]} 25. Kxg3 {[%clk
0:00:59.1]} 25... Kh7 {[%clk 0:01:47]} 26. Kh3 {[%clk 0:00:55.7]} 26... Rg8
{[%clk 0:01:46.3]} 27. g3 {[%clk 0:00:53.4]} 27... Rg7 {[%clk 0:01:34.5]} 28.
Rg1 {[%clk 0:00:51.3]} 28... Rag8 {[%clk 0:01:31.7]} 29. Rg2 {[%clk 0:00:45.4]}
29... Rg4 {[%clk 0:01:21]} 30. Na3 {[%clk 0:00:36]} 30... Nh5 {[%clk 0:01:17.8]}
31. Rcg1 {[%clk 0:00:35.8]} 31... Qd8 {[%clk 0:01:08.3]} 32. Kh2 {[%clk
0:00:30.1]} 32... Qxh4+ {[%clk 0:01:02.8]} 33. gxh4 {[%clk 0:00:28.3]} 33...
Rxh4# {[%clk 0:01:02.6]} 0-1

[Event "*** Titled Tuesday Blitz"]
[Site "Chess.com"]
[Date "2020.03.03"]
[Round "1"]
[White "SloLev"]
[Black "Konavets"]
[Result "0-1"]
[WhiteElo "2519"]
[BlackElo "3024"]
[TimeControl "180+1"]
[EndTime "13:06:01 PST"]
[Termination "Konavets won by resignation"]

1. e4 {[%clk 0:02:54.4]} 1... c5 {[%clk 0:02:59.4]} 2. c3 {[%clk 0:02:54.1]}
2... Nf6 {[%clk 0:02:49.4]} 3. e5 {[%clk 0:02:51.1]} 3... Nd5 {[%clk 0:02:49.7]}
4. g3 {[%clk 0:02:50.2]} 4... d6 {[%clk 0:02:49.1]} 5. exd6 {[%clk 0:02:47.8]}
5... Nc6 {[%clk 0:02:48.5]} 6. Bg2 {[%clk 0:02:47.6]} 6... Qxd6 {[%clk
0:02:48.3]} 7. Nf3 {[%clk 0:02:46]} 7... Bg4 {[%clk 0:02:48.2]} 8. O-O {[%clk
0:02:42.2]} 8... e6 {[%clk 0:02:48.5]} 9. Na3 {[%clk 0:02:41.1]} 9... Be7 {[%clk
0:02:48.3]} 10. d4 {[%clk 0:02:41.4]} 10... cxd4 {[%clk 0:02:48.3]} 11. Nb5
{[%clk 0:02:41.7]} 11... Qd7 {[%clk 0:02:48]} 12. Nbxd4 {[%clk 0:02:41.8]} 12...
O-O {[%clk 0:02:48]} 13. Nxc6 {[%clk 0:02:37.2]} 13... Qxc6 {[%clk 0:02:48.9]}
14. Nd4 {[%clk 0:02:26.4]} 14... Bxd1 {[%clk 0:02:42.4]} 15. Nxc6 {[%clk
0:02:26.6]} 15... bxc6 {[%clk 0:02:42.3]} 16. Rxd1 {[%clk 0:02:26.8]} 16... Rab8
{[%clk 0:02:42.4]} 17. c4 {[%clk 0:02:16.7]} 17... Nb4 {[%clk 0:02:41.7]} 18.
Bf4 {[%clk 0:02:14]} 18... Rbd8 {[%clk 0:02:39.9]} 19. Be4 {[%clk 0:01:37.5]}
19... f5 {[%clk 0:02:37.9]} 20. a3 {[%clk 0:01:36.8]} 20... fxe4 {[%clk
0:02:35.6]} 21. axb4 {[%clk 0:01:35.8]} 21... Rxd1+ {[%clk 0:02:35.4]} 22. Rxd1
{[%clk 0:01:35.6]} 22... Bxb4 {[%clk 0:02:36.3]} 23. Rd7 {[%clk 0:01:32.8]}
23... Rf7 {[%clk 0:02:36.1]} 24. Rd8+ {[%clk 0:01:31.1]} 24... Rf8 {[%clk
0:02:36.3]} 25. Rd7 {[%clk 0:01:30]} 25... Bc5 {[%clk 0:02:30.7]} 26. b4 {[%clk
0:01:14.4]} 26... Bxb4 {[%clk 0:02:28.9]} 27. Be5 {[%clk 0:01:10.8]} 27... Rf7
{[%clk 0:02:28.1]} 28. Rd8+ {[%clk 0:01:11.3]} 28... Bf8 {[%clk 0:02:27.9]} 29.
Bd6 {[%clk 0:01:08.7]} 29... g5 {[%clk 0:02:26]} 30. Re8 {[%clk 0:01:06]} 30...
Kg7 {[%clk 0:02:23.8]} 31. Bxf8+ {[%clk 0:01:06.3]} 31... Rxf8 {[%clk
0:02:24.7]} 32. Rxe6 {[%clk 0:01:06.9]} 32... Ra8 {[%clk 0:02:24.8]} 33. Rxc6
{[%clk 0:00:51.1]} 33... a5 {[%clk 0:02:23.7]} 34. Rb6 {[%clk 0:00:51.3]} 34...
a4 {[%clk 0:02:23.9]} 35. Rb2 {[%clk 0:00:51.7]} 35... a3 {[%clk 0:02:24.3]} 36.
Ra2 {[%clk 0:00:52.3]} 36... Kf6 {[%clk 0:02:25]} 37. Kf1 {[%clk 0:00:47.4]}
37... Ke5 {[%clk 0:02:25.4]} 38. Ke2 {[%clk 0:00:47.9]} 38... Kd4 {[%clk
0:02:25.9]} 39. c5 {[%clk 0:00:48.1]} 39... Kxc5 {[%clk 0:02:26.2]} 40. Ke3
{[%clk 0:00:48.6]} 40... Kb4 {[%clk 0:02:26.6]} 41. Kxe4 {[%clk 0:00:46.5]}
41... Kb3 {[%clk 0:02:26.4]} 42. Ra1 {[%clk 0:00:42.1]} 42... Kb2 {[%clk
0:02:25.7]} 43. Rf1 {[%clk 0:00:42.2]} 43... a2 {[%clk 0:02:24.9]} 44. Kf5
{[%clk 0:00:42.7]} 44... Ra5+ {[%clk 0:02:23.2]} 45. Kg4 {[%clk 0:00:33]} 45...
a1=Q {[%clk 0:02:13.7]} 46. Rxa1 {[%clk 0:00:32]} 46... Rxa1 {[%clk 0:02:01.2]}
47. Kxg5 {[%clk 0:00:31.1]} 47... Kc3 {[%clk 0:02:01.7]} 48. f4 {[%clk
0:00:29.3]} 48... Kd4 {[%clk 0:02:01.9]} 49. g4 {[%clk 0:00:26.3]} 49... Ke4
{[%clk 0:02:01.2]} 50. h4 {[%clk 0:00:25.4]} 50... Ra6 {[%clk 0:01:59.7]} 51. f5
{[%clk 0:00:20.6]} 51... h6+ {[%clk 0:02:00.1]} 52. Kh5 {[%clk 0:00:21]} 52...
Kf4 {[%clk 0:02:01]} 53. g5 {[%clk 0:00:12.2]} 53... hxg5 {[%clk 0:02:01.1]} 54.
hxg5 {[%clk 0:00:12.3]} 54... Kxf5 {[%clk 0:02:01.6]} 0-1